fUSD/lending_fUSD_20241224
["ID","MTS","AMOUNT","RATE_DAILY","PERIOD"]
[346491898,1735007460190,-1558.76,0.0001452,2]
[346491899,1735007460199,-2563.46,0.0001452,2]
[346491900,1735007460208,-2226.51,0.0001452,2]
[346491901,1735007460218,-500.0,0.0001452,2]
[346491902,1735007460227,-950.58,0.0001452,2]
[346491903,1735007460236,-4072.19,0.0001452,2]
[346491904,1735007460247,-1166.78,0.0001452,2]
[346491905,1735007460256,-898.08,0.0001452,2]
[346491906,1735007460265,-500.0,0.0001452,2]
[346491907,1735007460274,-600.61,0.0001452,2]
[346491908,1735007460284,-1152.46,0.0001452,2]
[346491909,1735007460293,-2232.16,0.0001452,2]
[346491910,1735007460302,-4521.11,0.0001452,2]
[346491911,1735007460312,-500.0,0.0001452,2]
[346491912,1735007460321,-767.98,0.0001452,2]
[346491913,1735007460331,-631.49,0.0001452,2]
[346491914,1735007460340,-1702.78,0.0001452,2]
[346491915,1735007460349,-729.56,0.0001452,2]
[346491916,1735007460358,-4520.53,0.0001452,2]
[346491917,1735007460367,-500.0,0.0001452,2]
[346491918,1735007460377,-4342.25,0.0001452,2]
[346491919,1735007460386,-12876.12,0.0001452,2]
[346491920,1735007460396,-963.49,0.0001452,2]
[346491921,1735007460410,-10210.08,0.0001452,2]
[346491922,1735007460420,-795.43,0.0001452,2]
[346491923,1735007460430,-500.0,0.0001452,2]
[346491924,1735007460439,-500.0,0.0001452,2]
[346491925,1735007460449,-1219.46,0.0001452,2]
[346491926,1735007460458,-1923.15,0.0001452,2]
[346491927,1735007460468,-2209.69,0.0001452,2]
[346491928,1735007460478,-2586.86,0.0001452,2]
[346491929,1735007460488,-3929.42,0.0001452,2]
[346491930,1735007460500,-707.35,0.0001452,2]
[346491931,1735007460510,-1741.33,0.0001452,2]
[346491932,1735007460519,-500.0,0.0001452,2]
[346491933,1735007460529,-833.25,0.0001452,2]
[346491934,1735007460539,-1443.18,0.0001452,2]
[346491935,1735007460548,-500.0,0.0001452,2]
[346491936,1735007460558,-1311.55,0.0001452,2]
[346491937,1735007460569,-1736.83,0.0001452,2]
[346491938,1735007460578,-4560.51,0.0001452,2]
[346491939,1735007460589,-9665.26,0.0001452,2]
[346491940,1735007460599,-2582.87,0.0001452,2]
[346491941,1735007460609,-5208.16,0.0001452,2]
[346491942,1735007460618,-851.27,0.0001452,2]
[346491943,1735007460628,-508.44,0.0001452,2]
[346491944,1735007460637,-2449.11,0.0001452,2]
[346491945,1735007460646,-1405.55,0.0001452,2]
[346491946,1735007460655,-499.52286363,0.0001452,2]
[346491947,1735007460664,-2273.62,0.0001452,2]
[346491948,1735007460673,-2640.52,0.0001452,2]
[346491949,1735007460682,-3017.77,0.0001452,2]
[346491950,1735007460692,-500.0,0.0001452,2]
[346491951,1735007460701,-622.94,0.0001452,2]
[346491952,1735007460711,-2612.67,0.0001452,2]
[346491953,1735007460720,-2189.27,0.0001452,2]
[346491954,1735007460731,-941.44,0.0001452,2]
[346491955,1735007460740,-151.0,0.0001452,2]
[346491956,1735007460752,-2315.01,0.0001452,2]
[346491957,1735007460761,-601.31,0.0001452,2]
[346491958,1735007460771,-10263.48,0.0001452,2]
[346491959,1735007460780,-712.83,0.0001452,2]
[346491960,1735007460790,-1007.54,0.0001452,2]
[346491961,1735007460799,-10922.53,0.0001452,2]
[346491962,1735007460808,-7363.44,0.0001452,2]
[346491963,1735007460818,-500.0,0.0001452,2]
[346491964,1735007460827,-688.94,0.0001452,2]
[346491965,1735007460837,-1032.65,0.0001452,2]
[346491966,1735007460846,-4342.99,0.0001452,2]
[346491967,1735007460856,-10449.35,0.0001452,2]
[346491968,1735007460865,-588.1,0.0001452,2]
[346491969,1735007460874,-3434.19,0.0001452,2]
[346491970,1735007460884,-500.0,0.0001452,2]
[346491971,1735007460894,-3118.55,0.0001452,2]
[346491972,1735007460906,-1506.32,0.0001452,2]
[346491973,1735007460915,-4466.69,0.0001452,2]
[346491974,1735007460926,-21837.29,0.0001452,2]
[346491975,1735007460936,-551.66,0.0001452,2]
[346491976,1735007460945,-1631.28,0.0001452,2]
[346491977,1735007460955,-6544.83,0.0001452,2]
[346491978,1735007460964,-652.5,0.0001452,2]
[346491979,1735007460974,-512.94,0.0001452,2]
[346491980,1735007460983,-770.65,0.0001452,2]
[346491981,1735007460993,-1839.01,0.0001452,2]
[346491982,1735007461003,-1031.69,0.0001452,2]
[346491983,1735007461013,-26195.86,0.0001452,2]
[346491984,1735007461022,-904.49,0.0001452,2]
[346491985,1735007461032,-535.15,0.0001452,2]
[346491986,1735007461042,-500.0,0.0001452,2]
[346491987,1735007461051,-2126.8,0.0001452,2]
[346491988,1735007461061,-5169.23,0.0001452,2]
[346491989,1735007461070,-500.0,0.0001452,2]
[346491990,1735007461080,-815.25,0.0001452,2]
[346491991,1735007461090,-2728.18,0.0001452,2]
[346491992,1735007461099,-608.77,0.0001452,2]
[346491993,1735007461108,-831.94,0.0001452,2]
[346491994,1735007461118,-500.0,0.0001452,2]
[346491995,1735007461127,-775.03,0.0001452,2]
[346491996,1735007461136,-16031.61,0.0001452,2]
[346491997,1735007461146,-500.0,0.0001452,2]
[346491998,1735007461155,-2600.82,0.0001452,2]
[346491999,1735007461164,-1530.64,0.0001452,2]
[346492000,1735007461173,-1498.97,0.0001452,2]
[346492001,1735007461182,-1261.14,0.0001452,2]
[346492002,1735007461192,-980.94,0.0001452,2]
[346492003,1735007461202,-687.04,0.0001452,2]
[346492004,1735007461211,-835.46,0.0001452,2]
[346492005,1735007461221,-746.28,0.0001452,2]
[346492006,1735007461230,-150.0,0.00014523,2]
[346492007,1735007461239,-150.0,0.00014523,2]
[346492008,1735007461249,-150.0,0.00014523,2]
[346492009,1735007461258,-150.0,0.00014523,2]
[346492010,1735007461268,-152.29528653,0.00014523,2]
[346492011,1735007461277,-150.0,0.00014523,2]
[346492012,1735007461286,-150.0,0.00014523,2]
[346492013,1735007461295,-150.0,0.0001454,2]
[346492014,1735007461304,-150.0,0.00014554,2]
[346492015,1735007461313,-150.0,0.00014557,2]
[346492016,1735007461322,-150.0,0.00014567,2]
[346492017,1735007461331,-648.08068878,0.00014573,2]
[346492018,1735007461340,-150.0,0.00014574,2]
[346492019,1735007461349,-150.0,0.00014585,2]
[346492020,1735007461358,-150.0,0.00014591,2]
[346492021,1735007461368,-547.91,0.00014593,2]
[346492022,1735007461377,-150.0,0.00014607,2]
[346492023,1735007461386,-150.0,0.00014611,2]
[346492024,1735007461395,-150.0,0.00014616,2]
[346492025,1735007461410,-150.0,0.00014624,2]
[346492026,1735007461419,-150.0,0.00014641,2]
[346492027,1735007461428,-150.0,0.00014647,2]
[346492028,1735007461438,-150.0,0.00014654,2]
[346492029,1735007461448,-150.0,0.00014658,2]
[346492030,1735007461457,-5694.64021943,0.00014664,2]
[346492031,1735007461466,-250.0,0.0001467,2]
[346492032,1735007461475,-150.0,0.00014675,2]
[346492033,1735007461485,-150.0,0.00014678,2]
[346492034,1735007461496,-150.0,0.00014691,2]
[346492035,1735007461505,-500.0,0.00014693,2]
[346492036,1735007461516,-764.03182002,0.00014694,2]
[346492037,1735007461525,-150.0,0.00014698,2]
[346492038,1735007461534,-366.0,0.000147,2]
[346492039,1735007461543,-1000.0,0.000147,2]
[346492040,1735007461552,-230.0,0.000147,2]
[346492041,1735007461561,-1000.0,0.00014701,2]
[346492042,1735007461570,-150.0,0.00014708,2]
[346492043,1735007461580,-150.0,0.00014709,2]
[346492044,1735007461589,-150.0,0.00014716,2]
[346492045,1735007461598,-150.0,0.00014716,2]
[346492046,1735007461607,-177.87,0.00014716,2]
[346492047,1735007461616,-365.19,0.00014716,2]
[346492048,1735007461625,-150.0,0.00014716,2]
[346492049,1735007461635,-150.0,0.00014716,2]
[346492050,1735007461645,-365.19,0.00014716,2]
[346492051,1735007461655,-370.21,0.00014716,2]
[346492052,1735007461664,-151.13,0.00014716,2]
[346492053,1735007461673,-150.0,0.00014725,2]
[346492054,1735007461682,-547.91,0.0001473,2]
[346492055,1735007461691,-3000.0,0.0001474,2]
[346492056,1735007461700,-150.0,0.00014741,2]
[346492057,1735007461709,-150.0,0.00014741,2]
[346492058,1735007461719,-150.0,0.00014742,2]
[346492059,1735007461728,-150.0,0.00014759,2]
[346492060,1735007461738,-150.0,0.00014772,2]
[346492061,1735007461750,-150.0,0.00014775,2]
[346492062,1735007461760,-150.0,0.00014785,2]
[346492063,1735007461769,-150.0,0.00014792,2]
[346492064,1735007461778,-500.0,0.00014793,2]
[346492065,1735007461789,-500.0,0.00014793,2]
[346492066,1735007461799,-200.0,0.00014794,2]
[346492067,1735007461808,-500.0,0.00014794,2]
[346492068,1735007461818,-200.65899661,0.00014794,2]
[346492069,1735007461827,-2347.0,0.00014794,2]
[346492070,1735007461836,-1344.0,0.00014794,2]
[346492071,1735007461845,-500.0,0.00014794,2]
[346492072,1735007461963,-500.0,0.00014794,2]
[346492073,1735007461972,-618.88,0.00014794,2]
[346492074,1735007461982,-500.0,0.00014794,2]
[346492075,1735007461991,-500.0,0.00014794,2]
[346492076,1735007462002,-500.0,0.00014794,2]
[346492077,1735007462011,-616.73,0.00014794,2]
[346492078,1735007462020,-500.0,0.00014794,2]
[346492079,1735007462030,-652.108415,0.00014794,2]
[346492080,1735007462040,-500.0,0.00014794,2]
[346492081,1735007462049,-546.46,0.00014794,2]
[346492082,1735007462059,-687.91,0.00014794,2]
[346492083,1735007462069,-500.0,0.00014794,2]
[346492084,1735007462079,-644.092414,0.00014794,2]
[346492085,1735007462088,-500.0,0.00014794,2]
[346492086,1735007462098,-500.0,0.00014794,2]
[346492087,1735007462112,-500.0,0.00014794,2]
[346492088,1735007462121,-546.67,0.00014794,2]
[346492089,1735007462130,-382.22973327,0.00014794,2]
[346492090,1735007462139,-553.98,0.00014794,2]
[346492091,1735007462149,-597.92,0.00014794,2]
[346492092,1735007462159,-500.0,0.00014794,2]
[346492093,1735007462168,-500.0,0.00014794,2]
[346492094,1735007462178,-593.7,0.00014794,2]
[346492095,1735007462187,-500.0,0.00014794,2]
[346492096,1735007462196,-500.0,0.00014794,2]
[346492097,1735007462205,-500.0,0.00014794,2]
[346492098,1735007462214,-500.0,0.00014794,2]
[346492099,1735007462223,-735.6,0.00014794,2]
[346492100,1735007462233,-500.0,0.00014794,2]
[346492101,1735007462243,-588.07,0.00014794,2]
[346492102,1735007462253,-500.0,0.00014794,2]
[346492103,1735007462263,-500.0,0.00014794,2]
[346492104,1735007462272,-500.0,0.00014794,2]
[346492105,1735007462281,-369.88245538,0.00014794,2]
[346492106,1735007462291,-500.0,0.00014794,2]
[346492107,1735007462301,-534.44,0.00014794,2]
[346492108,1735007462311,-573.35,0.00014794,2]
[346492109,1735007462321,-500.0,0.00014794,2]
[346492110,1735007462330,-500.0,0.00014794,2]
[346492111,1735007462339,-500.0,0.00014794,2]
[346492112,1735007462349,-500.0,0.00014794,2]
[346492113,1735007462359,-245.07084356,0.00014794,2]
[346492114,1735007462368,-500.0,0.00014794,2]
[346492115,1735007462377,-500.0,0.00014794,2]
[346492116,1735007462387,-500.0,0.00014794,2]
[346492117,1735007462396,-647.46,0.00014794,2]
[346492118,1735007462410,-500.0,0.00014794,2]
[346492119,1735007462420,-500.0,0.00014794,2]
[346492120,1735007462430,-500.0,0.00014794,2]
[346492121,1735007462439,-500.0,0.00014794,2]
[346492122,1735007462450,-500.0,0.00014794,2]
[346492123,1735007462460,-725.47,0.00014794,2]
[346492124,1735007462469,-500.0,0.00014794,2]
[346492125,1735007462479,-500.0,0.00014794,2]
[346492126,1735007462488,-500.0,0.00014794,2]
[346492127,1735007462499,-738.64,0.00014794,2]
[346492128,1735007462508,-500.0,0.00014794,2]
[346492129,1735007462518,-500.0,0.00014794,2]
[346492130,1735007462527,-500.0,0.00014794,2]
[346492131,1735007462537,-500.0,0.00014794,2]
[346492132,1735007462546,-783.25,0.00014794,2]
[346492133,1735007462555,-500.0,0.00014794,2]
[346492134,1735007462564,-689.83,0.00014794,2]
[346492135,1735007462577,-500.0,0.00014794,2]
[346492136,1735007462587,-500.0,0.00014794,2]
[346492137,1735007462597,-553.21,0.00014794,2]
[346492138,1735007462607,-652.3,0.00014794,2]
[346492139,1735007462616,-500.0,0.00014794,2]
[346492140,1735007462626,-500.0,0.00014794,2]
[346492141,1735007462636,-1683.36,0.00014794,2]
[346492142,1735007462646,-500.0,0.00014794,2]
[346492143,1735007462655,-500.0,0.00014794,2]
[346492144,1735007462664,-579.52,0.00014794,2]
[346492145,1735007462675,-622.4,0.00014794,2]
[346492146,1735007462684,-735.01,0.00014794,2]
[346492147,1735007462694,-717.05,0.00014794,2]
[346492148,1735007462703,-756.85,0.00014794,2]
[346492149,1735007462713,-615.06,0.00014794,2]
[346492150,1735007462723,-768.22,0.00014794,2]
[346492151,1735007462733,-500.0,0.00014794,2]
[346492152,1735007462742,-309.81649218,0.00014794,2]
[346492153,1735007462752,-500.0,0.00014794,2]
[346492154,1735007462762,-1363.94,0.00014794,2]
[346492155,1735007462772,-500.0,0.00014794,2]
[346492156,1735007462782,-500.0,0.00014794,2]
[346492157,1735007462792,-634.43,0.00014794,2]
[346492158,1735007462801,-500.0,0.00014794,2]
[346492159,1735007462811,-1192.57,0.00014794,2]
[346492160,1735007462821,-500.0,0.00014794,2]
[346492161,1735007462831,-500.0,0.00014794,2]
[346492162,1735007462841,-1089.65,0.00014794,2]
[346492163,1735007462850,-500.0,0.00014794,2]
[346492164,1735007462860,-500.0,0.00014794,2]
[346492165,1735007462870,-1043.27,0.00014794,2]
[346492166,1735007462879,-500.0,0.00014794,2]
[346492167,1735007462890,-500.0,0.00014794,2]
[346492168,1735007462899,-500.0,0.00014794,2]
[346492169,1735007462909,-500.0,0.00014794,2]
[346492170,1735007462918,-500.0,0.00014794,2]
[346492171,1735007462929,-500.0,0.00014794,2]
[346492172,1735007462941,-500.0,0.00014794,2]
[346492173,1735007462951,-500.0,0.00014794,2]
[346492174,1735007462962,-500.0,0.00014794,2]
[346492175,1735007462971,-500.0,0.00014794,2]
[346492176,1735007462981,-693.79,0.00014794,2]
[346492177,1735007462991,-1426.47,0.00014794,2]
[346492178,1735007463001,-592.95,0.00014794,2]
[346492179,1735007463011,-500.0,0.00014794,2]
[346492180,1735007463021,-500.0,0.00014794,2]
[346492181,1735007463031,-1061.26,0.00014794,2]
[346492182,1735007463040,-868.59,0.00014794,2]
[346492183,1735007463050,-500.0,0.00014794,2]
[346492184,1735007463060,-500.0,0.00014794,2]
[346492185,1735007463070,-821.96,0.00014794,2]
[346492186,1735007463080,-678.27,0.00014794,2]
[346492187,1735007463090,-558.93,0.00014794,2]
[346492188,1735007463100,-500.0,0.00014794,2]
[346492189,1735007463110,-500.0,0.00014794,2]
[346492190,1735007463121,-500.0,0.00014794,2]
[346492191,1735007463132,-500.0,0.00014794,2]
[346492192,1735007463142,-500.0,0.00014794,2]
[346492193,1735007463151,-598.82,0.00014794,2]
[346492194,1735007463161,-500.0,0.00014794,2]
[346492195,1735007463171,-535.47,0.00014794,2]
[346492196,1735007463180,-500.0,0.00014794,2]
[346492197,1735007463191,-500.0,0.00014794,2]
[346492198,1735007463201,-1017.52,0.00014794,2]
[346492199,1735007463211,-1099.52,0.00014794,2]
[346492200,1735007463220,-569.88,0.00014794,2]
[346492201,1735007463230,-1266.75,0.00014794,2]
[346492202,1735007463240,-500.0,0.00014794,2]
[346492203,1735007463250,-500.0,0.00014794,2]
[346492204,1735007463260,-500.0,0.00014794,2]
[346492205,1735007463270,-894.34,0.00014794,2]
[346492206,1735007463280,-1090.38,0.00014794,2]
[346492207,1735007463289,-500.0,0.00014794,2]
[346492208,1735007463299,-500.0,0.00014794,2]
[346492209,1735007463309,-1064.1,0.00014794,2]
[346492210,1735007463319,-667.83,0.00014794,2]
[346492211,1735007463328,-634.11,0.00014794,2]
[346492212,1735007463338,-500.0,0.00014794,2]
[346492213,1735007463349,-848.75,0.00014794,2]
[346492214,1735007463359,-500.0,0.00014794,2]
[346492215,1735007463369,-593.38,0.00014794,2]
[346492216,1735007463379,-500.0,0.00014794,2]
[346492217,1735007463389,-617.7,0.00014794,2]
[346492218,1735007463400,-1042.67,0.00014794,2]
[346492219,1735007463413,-592.82,0.00014794,2]
[346492220,1735007463423,-622.81,0.00014794,2]
[346492221,1735007463433,-553.18,0.00014794,2]
[346492222,1735007463444,-500.0,0.00014794,2]
[346492223,1735007463454,-500.0,0.00014794,2]
[346492224,1735007463464,-500.0,0.00014794,2]
[346492225,1735007463474,-904.21,0.00014794,2]
[346492226,1735007463485,-614.04,0.00014794,2]
[346492227,1735007463495,-500.0,0.00014794,2]
[346492228,1735007463506,-500.0,0.00014794,2]
[346492229,1735007463516,-500.0,0.00014794,2]
[346492230,1735007463527,-500.0,0.00014794,2]
[346492231,1735007463537,-500.0,0.00014794,2]
[346492232,1735007463547,-660.73,0.00014794,2]
[346492233,1735007463557,-150.36781397,0.00014794,2]
[346492234,1735007463567,-668.21,0.00014794,2]
[346492235,1735007463576,-500.0,0.00014794,2]
[346492236,1735007463586,-500.0,0.00014794,2]
[346492237,1735007463596,-669.58,0.00014794,2]
[346492238,1735007463605,-500.0,0.00014794,2]
[346492239,1735007463615,-1545.62,0.00014794,2]
[346492240,1735007463625,-500.0,0.00014794,2]
[346492241,1735007463636,-814.77,0.00014794,2]
[346492242,1735007463646,-994.78,0.00014794,2]
[346492243,1735007463656,-1452.44,0.00014794,2]
[346492244,1735007463666,-500.0,0.00014794,2]
[346492245,1735007463676,-500.0,0.00014794,2]
[346492246,1735007463687,-600.04,0.00014794,2]
[346492247,1735007463697,-500.0,0.00014794,2]
[346492248,1735007463706,-500.0,0.00014794,2]
[346492249,1735007463716,-1120.06,0.00014794,2]
[346492250,1735007463725,-994.95,0.00014794,2]
[346492251,1735007463735,-684.05,0.00014794,2]
[346492252,1735007463745,-500.0,0.00014794,2]
[346492253,1735007463755,-500.0,0.00014794,2]
[346492254,1735007463764,-795.23,0.00014794,2]
[346492255,1735007463774,-825.42,0.00014794,2]
[346492256,1735007463783,-1267.91,0.00014794,2]
[346492257,1735007463793,-500.0,0.00014794,2]
[346492258,1735007463803,-1564.05,0.00014794,2]
[346492259,1735007463813,-500.0,0.00014794,2]
[346492260,1735007463822,-1598.3,0.00014794,2]
[346492261,1735007463831,-500.0,0.00014794,2]
[346492262,1735007463841,-606.72,0.00014794,2]
[346492263,1735007463850,-581.65,0.00014794,2]
[346492264,1735007463860,-1196.67,0.00014794,2]
[346492265,1735007463869,-1141.42,0.00014794,2]
[346492266,1735007463878,-629.93,0.00014794,2]
[346492267,1735007463888,-1273.09,0.00014794,2]
[346492268,1735007463898,-744.09,0.00014794,2]
[346492269,1735007463908,-500.0,0.00014794,2]
[346492270,1735007463921,-500.0,0.00014794,2]
[346492271,1735007463930,-500.0,0.00014794,2]
[346492272,1735007463940,-500.0,0.00014794,2]
[346492273,1735007463949,-881.38,0.00014794,2]
[346492274,1735007463958,-844.67,0.00014794,2]
[346492275,1735007463967,-500.0,0.00014794,2]
[346492276,1735007463977,-500.0,0.00014794,2]
[346492277,1735007463986,-967.85,0.00014794,2]
[346492278,1735007463995,-624.54,0.00014794,2]
[346492279,1735007464005,-500.0,0.00014794,2]
[346492280,1735007464015,-500.0,0.00014794,2]
[346492281,1735007464024,-870.59,0.00014794,2]
[346492282,1735007464034,-743.33,0.00014794,2]
[346492283,1735007464043,-500.0,0.00014794,2]
[346492284,1735007464052,-500.0,0.00014794,2]
[346492285,1735007464062,-619.7,0.00014794,2]
[346492286,1735007464072,-500.0,0.00014794,2]
[346492287,1735007464082,-589.61,0.00014794,2]
[346492288,1735007464390,-465.94143644,0.00014794,2]
[346492289,1735007464400,-500.0,0.00014794,2]
[346492290,1735007464415,-500.0,0.00014794,2]
[346492291,1735007464425,-500.0,0.00014794,2]
[346492292,1735007464435,-663.65,0.00014794,2]
[346492293,1735007464444,-846.64,0.00014794,2]
[346492294,1735007464455,-400.56416566,0.00014794,2]
[346492295,1735007464465,-822.38,0.00014794,2]
[346492296,1735007464475,-545.12,0.00014794,2]
[346492297,1735007464487,-500.0,0.00014794,2]
[346492298,1735007464499,-857.8,0.00014794,2]
[346492299,1735007464510,-500.0,0.00014794,2]
[346492300,1735007464521,-628.91,0.00014794,2]
[346492301,1735007464531,-500.03,0.00014794,2]
[346492302,1735007464541,-500.0,0.00014794,2]
[346492303,1735007464551,-578.3,0.00014794,2]
[346492304,1735007464561,-664.63,0.00014794,2]
[346492305,1735007464572,-500.0,0.00014794,2]
[346492306,1735007464582,-560.21,0.00014794,2]
[346492307,1735007464593,-500.0,0.00014794,2]
[346492308,1735007464603,-1621.52,0.00014794,2]
[346492309,1735007464613,-500.0,0.00014794,2]
[346492310,1735007464624,-618.84,0.00014794,2]
[346492311,1735007464634,-500.0,0.00014794,2]
[346492312,1735007464643,-811.41,0.00014794,2]
[346492313,1735007464653,-831.51,0.00014794,2]
[346492314,1735007464663,-862.2,0.00014794,2]
[346492315,1735007464673,-500.0,0.00014794,2]
[346492316,1735007464684,-500.0,0.00014794,2]
[346492317,1735007464695,-500.0,0.00014794,2]
[346492318,1735007464705,-840.98,0.00014794,2]
[346492319,1735007464715,-500.0,0.00014794,2]
[346492320,1735007464726,-710.37,0.00014794,2]
[346492321,1735007464736,-500.0,0.00014794,2]
[346492322,1735007464748,-511.09,0.00014794,2]
[346492323,1735007464758,-500.0,0.00014794,2]
[346492324,1735007464768,-500.0,0.00014794,2]
[346492325,1735007464778,-500.0,0.00014794,2]
[346492326,1735007464788,-675.71,0.00014794,2]
[346492327,1735007464798,-1144.42,0.00014794,2]
[346492328,1735007464807,-1450.49,0.00014794,2]
[346492329,1735007464818,-915.2,0.00014794,2]
[346492330,1735007464828,-521.96,0.00014794,2]
[346492331,1735007464838,-608.78,0.00014794,2]
[346492332,1735007464848,-652.93,0.00014794,2]
[346492333,1735007464858,-759.0,0.00014794,2]
[346492334,1735007464868,-583.2,0.00014794,2]
[346492335,1735007464878,-679.37,0.00014794,2]
[346492336,1735007464887,-569.4,0.00014794,2]
[346492337,1735007464897,-701.37,0.00014794,2]
[346492338,1735007464906,-500.0,0.00014794,2]
[346492339,1735007464916,-693.77,0.00014794,2]
[346492340,1735007464926,-1679.98,0.00014794,2]
[346492341,1735007464937,-502.12,0.00014794,2]
[346492342,1735007464947,-500.0,0.00014794,2]
[346492343,1735007464956,-524.76,0.00014794,2]
[346492344,1735007464967,-500.0,0.00014794,2]
[346492345,1735007464976,-1154.4,0.00014794,2]
[346492346,1735007464985,-709.56,0.00014794,2]
[346492347,1735007464996,-500.0,0.00014794,2]
[346492348,1735007465006,-1301.45,0.00014794,2]
[346492349,1735007465016,-500.0,0.00014794,2]
[346492350,1735007465026,-500.0,0.00014794,2]
[346492351,1735007465035,-500.0,0.00014794,2]
[346492352,1735007465045,-611.77,0.00014794,2]
[346492353,1735007465055,-963.98,0.00014794,2]
[346492354,1735007465064,-7171.2,0.00014794,2]
[346492355,1735007465074,-710.65,0.00014794,2]
[346492356,1735007465083,-618.56,0.00014794,2]
[346492357,1735007465092,-500.0,0.00014794,2]
[346492358,1735007465102,-500.0,0.00014794,2]
[346492359,1735007465115,-500.0,0.00014794,2]
[346492360,1735007465125,-726.77,0.00014794,2]
[346492361,1735007465134,-500.0,0.00014794,2]
[346492362,1735007465143,-500.0,0.00014794,2]
[346492363,1735007465152,-669.37,0.00014794,2]
[346492364,1735007465162,-450.77532336,0.00014794,2]
[346492365,1735007465172,-500.0,0.00014794,2]
[346492366,1735007465182,-500.0,0.00014794,2]
[346492367,1735007465192,-1646.6,0.00014794,2]
[346492368,1735007465202,-768.51,0.00014794,2]
[346492369,1735007465212,-954.73,0.00014794,2]
[346492370,1735007465222,-7137.83,0.00014794,2]
[346492371,1735007465231,-501.32,0.00014794,2]
[346492372,1735007465241,-500.0,0.00014794,2]
[346492373,1735007465254,-790.41,0.00014794,2]
[346492374,1735007465264,-1709.11,0.00014794,2]
[346492375,1735007465273,-899.06,0.00014794,2]
[346492376,1735007465283,-1723.42,0.00014794,2]
[346492377,1735007465292,-630.14,0.00014794,2]
[346492378,1735007465302,-500.0,0.00014794,2]
[346492379,1735007465311,-2292.47,0.00014794,2]
[346492380,1735007465320,-521.93,0.00014794,2]
[346492381,1735007465330,-500.0,0.00014794,2]
[346492382,1735007465340,-500.0,0.00014794,2]
[346492383,1735007465349,-4440.78,0.00014794,2]
[346492384,1735007465359,-1044.76,0.00014794,2]
[346492385,1735007465369,-500.0,0.00014794,2]
[346492386,1735007465378,-821.86,0.00014794,2]
[346492387,1735007465388,-4785.48,0.00014794,2]
[346492388,1735007465398,-1038.34,0.00014794,2]
[346492389,1735007465414,-500.0,0.00014794,2]
[346492390,1735007465424,-620.5,0.00014794,2]
[346492391,1735007465435,-1762.88,0.00014794,2]
[346492392,1735007465447,-532.46,0.00014794,2]
[346492393,1735007465457,-3288.82,0.00014794,2]
[346492394,1735007465467,-1236.75,0.00014794,2]
[346492395,1735007465477,-7839.9,0.00014794,2]
[346492396,1735007465487,-720.23,0.00014794,2]
[346492397,1735007465501,-500.0,0.00014794,2]